fUSD/lending_fUSD_20250926
["ID","MTS","AMOUNT","RATE_DAILY","PERIOD"]
[387822085,1758891053588,-571.358597,0.000199,2]
[387822086,1758891053598,-4366.6353921,0.0002,2]
[387822087,1758891053611,-5119.68233417,0.0002,2]
[387822088,1758891053623,-5795.03188239,0.0002,2]
[387822089,1758891053635,-271.42282622,0.0002,2]
[387822090,1758891053670,-1228.70995505,0.0002,2]
[387822091,1758891053682,-1086.05742157,0.0002,2]
[387822092,1758891053694,-3103.7752659,0.0002,2]
[387822093,1758891053706,-4098.47140395,0.0002,2]
[387822094,1758891053718,-2188.98884679,0.0002,2]
[387822095,1758891053740,-1012.4,0.00019762,2]
[387822096,1758891053750,-53847.6,0.0002,2]
[387822097,1758891053793,-113247.04195304,0.0002,2]
[387822098,1758891054057,-21.46836717,0.0002,2]
[387822099,1758891054165,-189044.97353651,0.0002,2]
[387822100,1758891054177,-200867.52497095,0.0002,2]
[387822101,1758891054187,-3950.0,0.0002,2]
[387822102,1758891054196,-1276.03702734,0.0002,2]
[387822103,1758891054207,-7269.53803068,0.0002,2]
[387822104,1758891054217,-2092.24614128,0.0002,3]
[387822105,1758891054226,-489.1906412,0.0002,10]
[387822106,1758891054236,-150.0,0.0002,2]
[387822107,1758891054247,-3065.46318853,0.0002,5]
[387822108,1758891054309,-265.96,0.0002,5]
[387822109,1758891056610,-1240.187637,0.000199,2]
[387822110,1758891056620,-347.799962,0.000199,2]
[387822111,1758891056630,-571.358597,0.000199,2]
[387822112,1758891056640,-1240.187637,0.000199,2]
[387822113,1758891056650,-347.799962,0.000199,2]
[387822114,1758891056659,-571.358597,0.000199,2]
[387822115,1758891056669,-151.0,0.000199,2]
[387822116,1758891056679,-151.0,0.000199,2]
[387822117,1758891056689,-208.971634,0.000199,2]
[387822118,1758891056699,-151.0,0.000199,2]
[387822119,1758891056709,-212.32001203,0.000199,2]
[387822120,1758891056721,-1027.86762497,0.000199,2]
[387822121,1758891056732,-208.971634,0.000199,2]
[387822122,1758891056743,-347.799962,0.000199,2]
[387822123,1758891056753,-571.358597,0.000199,2]
[387822124,1758891056765,-163.04932874,0.0002,5]
[387822125,1758891056775,-1030.02756269,0.0002,2]
[387822126,1758891056786,-2915.11465992,0.0002,2]
[387822127,1758891056799,-1129.4,0.0002,2]
[387822128,1758891058540,-2777.2,0.000198,2]
[387822129,1758891058636,-751.324095,0.000198,2]
[387822130,1758891058729,-1471.475905,0.000198,2]
[387822131,1758891058740,-1240.187637,0.000199,2]
[387822132,1758891058750,-127.235458,0.000199,2]
[387822181,1758891805126,500.0,0.00030136,120]
[387822182,1758891805772,500.0,0.00030136,120]
[387822183,1758891805962,500.0,0.00030136,120]
[387822184,1758891806062,437.61556043,0.00030136,120]
[387822187,1758891865256,150.0,0.000182,2]
[387822189,1758891922715,500.0,0.0003013,120]
[387822190,1758891926738,1772.71670588,0.00030137,120]
[387822191,1758891937734,200.0,0.00018571,2]
[387822192,1758891968418,10684.54211,7.945e-05,2]
[387822193,1758891979277,6232.0,0.00030136,120]
[387822195,1758892002729,161.02,9.436e-05,2]
[387822196,1758892002968,161.02,0.00011795,2]
[387822197,1758892003212,161.02,0.00014154,2]
[387822198,1758892003693,161.02,0.00016513,2]
[387822212,1758892230970,-196.62990047,0.00018626,2]
[387822235,1758892232788,-165.33009953,0.00018626,2]
[387822237,1758892232798,-312.71,0.00018748,2]
[387822239,1758892232807,-184.7439825,0.00018767,2]
[387822242,1758892232817,-195.0,0.00018808,2]
[387822244,1758892232827,-2128.6680134,0.00018808,2]
[387822246,1758892232836,-500.0,0.00018867,2]
[387822248,1758892232849,-161.02,0.00018871,2]
[387822250,1758892232859,-150.0,0.00018897,7]
[387822252,1758892232868,-300.0,0.00018966,2]
[387822254,1758892232878,-1200.0,0.00018966,2]
[387822256,1758892232887,-500.0,0.00018967,2]
[387822258,1758892232896,-437.7265444,0.00018967,2]
[387822260,1758892232906,-2180.39,0.00018968,2]
[387822262,1758892232915,-209.40437684,0.00018975,2]
[387822264,1758892232925,-9695.4840591,0.00018975,2]
[387822266,1758892232935,-277.35679052,0.00018975,2]
[387822268,1758892232945,-152.1794307,0.00018975,2]
[387822270,1758892232954,-258.0,0.00018985,2]
[387822272,1758892232964,-164.21,0.00019124,2]
[387822273,1758892232974,-799.89495094,0.00019134,2]
[387822275,1758892232984,-151.0,0.00019178,2]
[387822278,1758892232995,-150.0,0.0001938,2]
[387822279,1758892233004,-799.89495094,0.000194,2]
[387822280,1758892233015,-799.89495094,0.00019548,2]
[387822281,1758892233025,-361.96,0.00019557,2]
[387822282,1758892233035,-500.0,0.00019773,2]
[387822283,1758892233044,-500.0,0.00019773,2]
[387822284,1758892233054,-799.89495096,0.00019783,2]
[387822285,1758892233064,-322.6107,0.00019786,2]
[387822286,1758892233074,-500.0,0.00019786,2]
[387822287,1758892233086,-500.0,0.00019786,2]
[387822288,1758892233097,-500.0,0.00019786,2]
[387822289,1758892233111,-500.0,0.00019786,2]
[387822291,1758892233121,-500.0,0.00019786,2]
[387822293,1758892233131,-500.0,0.00019786,2]
[387822295,1758892233141,-200.0,0.00019786,2]
[387822297,1758892233151,-200.0,0.00019786,2]
[387822299,1758892233161,-183.22404592,0.00019786,2]
[387822301,1758892233171,-544.52,0.000198,2]
[387822303,1758892233182,-1214.73,0.000198,2]
[387822305,1758892233193,-5376.05886665,0.0001981,2]
[387822307,1758892233203,-18739.08941958,0.0001981,2]
[387822309,1758892233214,-1146.60284602,0.00019821,2]
[387822311,1758892233224,-1425.0,0.00019868,2]
[387822313,1758892233234,-1425.0,0.00019869,2]
[387822315,1758892233244,-500.0,0.00019873,2]
[387822317,1758892233254,-500.0,0.00019873,2]
[387822319,1758892233264,-1000.0,0.00019879,2]
[387822321,1758892233274,-843.48,0.0001989,2]
[387822323,1758892233284,-300.0,0.00019899,2]
[387822325,1758892233294,-16496.60267141,0.000199,2]
[387822392,1758892234135,-985.58140418,0.000199,2]
[387822393,1758892234147,-1175.69779767,0.000199,2]
[387822394,1758892234166,-1046.53963378,0.000199,2]
[387822395,1758892234221,-1319.79933441,0.000199,2]
[387822396,1758892234234,-213858.30051731,0.000199,2]
[387822397,1758892234244,-5000.0,0.000199,2]
[387822398,1758892234254,-358.7582184,0.000199,2]
[387822399,1758892234265,-150.0,0.00019906,2]
[387822400,1758892234276,-150.0,0.00019907,2]
[387822401,1758892234286,-150.0,0.00019913,2]
[387822402,1758892234296,-300.0,0.00019915,2]
[387822403,1758892234306,-1425.0,0.00019929,2]
[387822404,1758892234316,-150.0,0.00019936,2]
[387822405,1758892234327,-607.16292675,0.0001995,2]
[387822406,1758892234337,-150.0,0.00019952,2]
[387822407,1758892234347,-1229.0,0.0001996,2]
[387822408,1758892234357,-151.0,0.0001996,2]
[387822409,1758892234367,-1229.0,0.0001996,2]
[387822410,1758892234377,-151.0,0.0001996,2]
[387822411,1758892234387,-1229.0,0.0001996,2]
[387822412,1758892234397,-151.0,0.0001996,2]
[387822413,1758892234407,-151.0,0.0001996,2]
[387822414,1758892234417,-1229.0,0.0001996,2]
[387822415,1758892234426,-151.0,0.0001996,2]
[387822416,1758892234436,-818.0,0.0001996,2]
[387822417,1758892234446,-151.0,0.0001996,2]
[387822418,1758892234456,-151.0,0.0001996,2]
[387822419,1758892234466,-1229.0,0.0001996,2]
[387822420,1758892234476,-151.0,0.0001996,2]
[387822421,1758892234485,-818.0,0.0001996,2]
[387822422,1758892234495,-1229.0,0.0001996,2]
[387822423,1758892234504,-151.0,0.0001996,2]
[387822424,1758892234515,-818.0,0.0001996,2]
[387822425,1758892234525,-1229.0,0.0001996,2]
[387822426,1758892234535,-500.0,0.00019973,2]
[387822427,1758892234545,-500.0,0.00019973,2]
[387822428,1758892234554,-500.0,0.00019973,2]
[387822429,1758892234564,-500.0,0.00019973,2]
[387822430,1758892234574,-500.0,0.00019973,2]
[387822431,1758892234584,-500.0,0.00019973,2]
[387822432,1758892234594,-500.0,0.00019973,2]
[387822433,1758892234605,-500.0,0.00019973,2]
[387822434,1758892234615,-500.0,0.00019973,2]
[387822435,1758892234625,-501.46684142,0.00019973,2]
[387822436,1758892234635,-500.0,0.00019973,2]
[387822437,1758892234645,-500.0,0.00019973,2]
[387822438,1758892234656,-500.0,0.00019973,2]
[387822439,1758892234666,-843.67,0.00019973,2]
[387822440,1758892234676,-150.0,0.00019973,2]
[387822441,1758892234685,-150.0,0.00019973,2]
[387822442,1758892234695,-500.0,0.00019973,2]
[387822443,1758892234705,-150.0,0.00019973,2]
[387822444,1758892234714,-1653.0,0.00019973,2]
[387822445,1758892234723,-200.0,0.00019973,2]
[387822446,1758892234733,-150.0,0.00019973,2]
[387822447,1758892234743,-150.0,0.00019973,2]
[387822448,1758892234752,-150.0,0.00019973,2]
[387822449,1758892234762,-150.0,0.00019988,2]
[387822450,1758892234771,-150.0,0.00019988,2]
[387822451,1758892234781,-236.17091096,0.00019988,2]
[387822452,1758892234791,-150.0,0.00019988,2]
[387822453,1758892234800,-150.0,0.00019988,2]
[387822454,1758892234810,-150.0,0.00019988,2]
[387822455,1758892234819,-150.0,0.00019988,2]
[387822456,1758892234829,-150.0,0.00019988,2]
[387822457,1758892234840,-150.0,0.00019988,2]
[387822458,1758892234855,-500.0,0.00019988,2]
[387822459,1758892234866,-150.0,0.00019988,2]
[387822460,1758892234876,-500.0,0.00019988,2]
[387822461,1758892234887,-500.0,0.00019988,2]
[387822462,1758892234898,-150.0,0.00019988,2]
[387822463,1758892234907,-150.0,0.00019988,2]
[387822464,1758892234917,-150.0,0.00019988,2]
[387822465,1758892234927,-1046.0,0.00019988,2]
[387822466,1758892234937,-440.0,0.00019988,2]
[387822467,1758892234947,-2561.5371282,0.00019999,2]
[387822468,1758892234957,-58453.1606415,0.00019999,2]
[387822469,1758892234967,-1000.0,0.00019999,2]
[387822470,1758892234977,-1095.0,0.0002,2]
[387822471,1758892234986,-4000.0,0.0002,4]
[387822472,1758892234996,-18652.53783046,0.0002,2]
[387822473,1758892235009,-346.84803172,0.0002,2]
[387822474,1758892235021,-555.86630214,0.0002,2]
[387822475,1758892235033,-2616.99340771,0.0002,2]
[387822476,1758892235226,-633.74999471,0.0002,2]
[387822477,1758892235238,-1018.5105476,0.0002,2]
[387822478,1758892235290,-29680.04235959,0.0002,2]
[387822572,1758892239408,-151.0,0.0001996,2]
[387822574,1758892239418,-151.0,0.0001996,2]
[387822576,1758892239427,-818.0,0.0001996,2]
[387822578,1758892239436,-299.71356506,0.0001996,2]
[387822584,1758892239568,-929.28643494,0.0001996,2]
[387822586,1758892239578,-3596.90715968,0.0002,2]
[387822589,1758892239589,-499.99,0.0002,2]
[387822603,1758892239714,-2130.83,0.0002,2]
[387822764,1758892241217,-388.42663764,0.00019889,2]
[387822767,1758892241228,-151.0,0.0001996,2]
[387822768,1758892241237,-818.0,0.0001996,2]
[387822770,1758892241247,-151.0,0.0001996,2]
[387822773,1758892241256,-26945.26907575,0.0002,2]
[387822774,1758892241265,-8681.1736849,0.0002,2]
[387822777,1758892241275,-5000.0,0.0002,2]
[387822779,1758892241284,-500.0,0.0002,2]
[387822781,1758892241294,-501.39363528,0.0002,2]
[387822783,1758892241304,-393.37256537,0.0002,2]
[387822785,1758892241314,-79797.8563077,0.0002,2]
[387822787,1758892241330,-11527.12123218,0.0002,2]
[387822793,1758892241372,-176924.12948161,0.0002,2]
[387822795,1758892241382,-1000.0,0.0002,2]
[387822797,1758892241391,-1000.0,0.0002,2]
[387822799,1758892241401,-1000.0,0.0002,2]
[387822801,1758892241410,-1000.0,0.0002,2]
[387822803,1758892241420,-1000.0,0.0002,2]
[387822805,1758892241430,-1000.0,0.0002,2]
[387822807,1758892241439,-1000.0,0.0002,2]
[387822809,1758892241448,-1000.0,0.0002,2]
[387822811,1758892241458,-1000.0,0.0002,2]
[387822813,1758892241467,-1000.0,0.0002,2]
[387822815,1758892241477,-1000.0,0.0002,2]
[387822817,1758892241486,-1000.0,0.0002,2]
[387822819,1758892241496,-1000.0,0.0002,2]
[387822821,1758892241506,-1000.0,0.0002,2]
[387822823,1758892241515,-1000.0,0.0002,2]
[387822825,1758892241525,-1000.0,0.0002,2]
[387822827,1758892241534,-1000.0,0.0002,2]
[387822828,1758892241543,-1000.0,0.0002,2]
[387822829,1758892241552,-1000.0,0.0002,2]
[387822830,1758892241562,-927.89499032,0.0002,2]
[387822831,1758892241571,-1311113.92739806,0.0002,2]
[387822832,1758892241580,-10757.93074359,0.0002,2]
[387822833,1758892241590,-1510.99265638,0.0002,2]
[387822834,1758892241599,-313118.28031584,0.0002,2]
[387822835,1758892241611,-1441.46771697,0.0002,5]
[387822837,1758892241622,-25224.4545419,0.0002,2]
[387822839,1758892241632,-45292.13443479,0.0002,5]
[387822841,1758892241642,-8281.57559925,0.0002,4]
[387822843,1758892241652,-437301.11797093,0.0002,2]
[387823423,1758892247317,-338.21309304,0.0001996,2]
[387823526,1758892248275,-890.78690696,0.0001996,2]
[387823528,1758892248284,-818.0,0.0001996,2]
[387823530,1758892248294,-151.0,0.0001996,2]
[387823532,1758892248305,-151.0,0.0001996,2]
[387823534,1758892248315,-721.62634393,0.0001996,2]
[387823536,1758892248325,-1667.58674911,0.0002,2]
[387823571,1758892248723,-1129.7285,0.0002,2]
[387824650,1758892389922,-150.0,0.000191,2]
[387824656,1758892610503,-178.78090664,0.00019073,2]
[387824678,1758892915809,150.0,0.000181,2]
[387824682,1758892972191,-237.8888861,0.00018726,3]
[387824683,1758892976564,-328.78090664,0.00018726,3]
[387824684,1758892996098,2162.09,0.00030137,120]
[387824685,1758893009662,2162.09,0.00030137,120]
[387824686,1758893019463,156.64,9.282e-05,2]
[387824687,1758893019611,156.64,9.771e-05,2]
[387824688,1758893019806,156.64,0.0001026,2]
[387824689,1758893020035,156.64,0.00010748,2]
[387824690,1758893020384,156.64,0.00011237,2]
[387824691,1758893020612,156.64,0.00011725,2]
[387824692,1758893020857,156.64,0.00012214,2]
[387824693,1758893021572,156.64,0.00012702,2]
[387824694,1758893021763,156.64,0.00013191,2]
[387824695,1758893021904,156.64,0.00013679,2]
[387824696,1758893022118,156.64,0.00014168,2]
[387824697,1758893022623,156.64,0.00014656,2]
[387824698,1758893023726,156.64,0.00015145,2]
[387824699,1758893024565,156.64,0.00015634,2]
[387824700,1758893024818,156.64,0.00016122,2]
[387824701,1758893025166,156.64,0.00016611,2]
[387824702,1758893025700,156.64,0.00017099,2]
[387824703,1758893025917,156.64,0.00017588,2]
[387824704,1758893026218,156.64,0.00018076,2]
[387824705,1758893026510,156.64,0.00018565,2]
[387824706,1758893039623,10000.0,0.00018571,2]
[387824707,1758893074788,-203.7904241,0.00018607,2]
[387824711,1758893078442,-156.99,0.00018607,2]
[387824712,1758893078900,167.36,0.00014852,2]
[387824713,1758893081820,-169.77044138,0.00018607,2]
[387824714,1758893083482,-157.34913452,0.00018607,2]
[387824715,1758893129862,-216.74505655,0.00018617,2]
[387824716,1758893138031,-221.84099764,0.00018617,2]
[387824717,1758893145158,-250.0,0.00018617,2]
[387824718,1758893152662,-207.45875155,0.00018617,2]
[387824719,1758893155859,-264.57954295,0.00018617,2]
[387824720,1758893158790,-462.05263035,0.00018617,2]
[387824721,1758893161025,-163.7177351,0.00018617,2]
[387824722,1758893163788,-141.21528586,0.00018617,2]
[387824740,1758893299683,10000.0,0.00018571,2]
[387824747,1758893325939,5002.0,0.00018571,2]
[387824750,1758893339207,0.13763974,0.00018543,2]
[387824751,1758893339240,164.33236026,0.00018543,2]
[387824752,1758893341802,628.23861066,0.00030137,120]
[387824755,1758893368198,358.88,0.00018555,2]
[387824760,1758893425157,610.0,0.00018546,2]
[387824791,1758893433299,-99.33020726,0.00018726,3]
[387824792,1758893433309,-195.0,0.00018751,2]
[387824793,1758893433320,-1304.99875991,0.00018751,2]
[387824794,1758893433390,-695.00124009,0.00018751,2]
[387824795,1758893433402,-195.0,0.00018849,2]
[387824796,1758893433417,-154.08098775,0.00018867,2]
[387824797,1758893433427,-150.0,0.00018922,7]
[387824798,1758893433438,-1200.0,0.00018956,2]
[387824799,1758893433449,-300.0,0.00018956,2]
[387824800,1758893433459,-326.99878927,0.00018957,2]
[387824801,1758893433469,-348.00150522,0.00018957,2]
[387824802,1758893433479,-713.10263971,0.00018957,2]
[387824803,1758893433531,-295.60861375,0.00018957,2]
[387824804,1758893433543,-1095.58800653,0.00018957,2]
[387824805,1758893433555,-5852.88835788,0.00018957,2]
[387824806,1758893433567,-951.31643728,0.00018957,2]
[387824807,1758893433579,-643.66381032,0.00018957,2]
[387824808,1758893433590,-18892.34900072,0.00018968,2]
[387824809,1758893433602,-2308.74451717,0.00018968,2]
[387824810,1758893433614,-253.88648211,0.00018968,2]
[387824811,1758893433624,-147.90351789,0.00018978,2]
[387824812,1758893433636,-4574.87460846,0.00018978,2]
[387824813,1758893433677,-5277.22187365,0.00018978,2]
[387824814,1758893433687,-250.0,0.00018978,2]
[387824815,1758893433697,-4577.88,0.00018978,2]
[387824816,1758893433708,-398.66731115,0.00018978,2]
[387824817,1758893433746,-300.34751347,0.00018978,2]
[387824818,1758893433758,-300.97517538,0.00018978,2]
[387824819,1758893433768,-80.52932777,0.0001901,2]
[387824860,1758893439347,-919.47067223,0.0001901,2]
[387824861,1758893439357,-271.89864635,0.00019011,2]
[387824862,1758893439367,-680.56731265,0.00019012,2]
[387824867,1758893441939,-6870.94579748,0.00019012,2]
[387824868,1758893442090,150.0,0.000171,2]
[387824869,1758893442103,-392.78700021,0.00019012,2]
[387824870,1758893442115,-1961.29796616,0.00019012,2]
[387824871,1758893442125,-1229.0,0.00019026,2]
[387824872,1758893442135,-151.0,0.00019026,2]
[387824873,1758893442145,-1006.29,0.00019057,2]
[387824874,1758893442154,-6530.10578351,0.00019067,2]
[387824875,1758893442164,-11891.00909336,0.00019073,2]
[387824876,1758893442175,-809.757,0.00019073,4]
[387824877,1758893442186,-10000.0,0.00019073,2]
[387824878,1758893442196,-172.92,0.00019114,2]
[387824879,1758893442206,-180.20619141,0.00019178,2]
[387824880,1758893442215,-934.47345189,0.00019397,2]
[387824881,1758893442224,-358.88,0.00019483,2]
[387824882,1758893442233,-334.67,0.000195,2]
[387824883,1758893442243,-1058.07,0.000195,2]
[387824884,1758893442253,-944.18,0.000195,2]
[387824885,1758893442262,-800.0,0.000197,7]
[387824886,1758893442272,-3895.5,0.000197,2]
[387824887,1758893442282,-233.48027807,0.0001971,2]
[387824888,1758893442291,-198.28,0.00019726,2]
[387824889,1758893442301,-175.36,0.000198,2]
[387824890,1758893442311,-410.2,0.000198,2]
[387824891,1758893442321,-150.82,0.000198,2]
[387824892,1758893442331,-150.0,0.000198,2]
[387824893,1758893442340,-1611.78,0.000198,2]
[387824894,1758893442350,-1600.0,0.000198,7]
[387824895,1758893442360,-642.81277714,0.000198,2]
[387824896,1758893442369,-934.47345189,0.000198,2]
[387824897,1758893442379,-177.70694557,0.000198,2]
[387824898,1758893442390,-10000.0,0.00019807,2]
[387824899,1758893442400,-642.81277707,0.00019813,2]
[387824900,1758893442417,-642.81277707,0.00019825,2]
[387824901,1758893442429,-642.81277707,0.00019838,2]
[387824902,1758893442439,-642.81277707,0.0001985,2]
[387824903,1758893442449,-642.81277707,0.00019863,2]
[387824904,1758893442461,-1000.0,0.00019863,2]
[387824905,1758893442470,-642.81277707,0.00019875,2]
[387824906,1758893442480,-642.81277707,0.00019888,2]
[387824907,1758893442490,-322.6107,0.00019888,2]
[387824908,1758893442501,-151.0,0.00019888,2]
[387824909,1758893442511,-151.0,0.00019888,2]
[387824910,1758893442520,-151.0,0.00019888,2]
[387824911,1758893442529,-151.0,0.00019888,2]
[387824912,1758893442539,-151.0,0.00019888,2]
[387824913,1758893442549,-151.0,0.00019888,2]
[387824914,1758893442559,-177.10399553,0.00019888,2]
[387824915,1758893442569,-152.77939838,0.00019888,2]
[387824916,1758893442578,-400.0,0.00019899,2]
[387824917,1758893442589,-734.0,0.000199,2]
[387824918,1758893442599,-5000.0,0.000199,2]
[387824919,1758893442609,-1074045.66137222,0.000199,2]
[387824920,1758893442618,-20000.0,0.000199,2]
[387824921,1758893442628,-2500.0,0.000199,7]
[387824922,1758893442638,-6368.68691406,0.000199,2]
[387824923,1758893442647,-642.81277707,0.000199,2]
[387824924,1758893442658,-642.81277707,0.00019913,2]
[387824925,1758893442668,-543.69,0.00019942,2]
[387824926,1758893442890,-189.0,0.0001995,2]
[387824927,1758893442900,-818.0,0.0001996,2]
[387824928,1758893442910,-151.0,0.0001996,2]
[387824929,1758893442920,-159.30599452,0.0001996,2]
[387824930,1758893442930,-818.0,0.0001996,2]
[387824931,1758893442940,-151.0,0.0001996,2]
[387824932,1758893442951,-818.0,0.0001996,2]
[387824933,1758893442961,-151.0,0.0001996,2]
[387824934,1758893442970,-151.0,0.0001996,2]
[387824935,1758893442981,-151.0,0.0001996,2]
[387824936,1758893442991,-151.0,0.0001996,2]
[387824937,1758893443001,-807.0,0.0001996,2]
[387824938,1758893443011,-151.0,0.0001996,2]
[387824939,1758893443021,-151.0,0.0001996,2]
[387824940,1758893443031,-151.0,0.0001996,2]
[387824941,1758893443041,-151.0,0.0001996,2]
[387824942,1758893443051,-151.0,0.0001996,2]
[387824943,1758893443061,-151.0,0.0001996,2]
[387824944,1758893443071,-151.0,0.0001996,2]
[387824945,1758893443081,-151.0,0.0001996,2]
[387824946,1758893443090,-151.0,0.0001996,2]
[387824947,1758893443100,-857.73,0.0001996,2]
[387824948,1758893443110,-1827.892,0.0001996,2]
[387824949,1758893443120,-189.0,0.00019968,2]
[387824950,1758893443129,-500.0,0.00019973,2]
[387824951,1758893443139,-500.0,0.00019973,2]
[387824952,1758893443149,-500.0,0.00019973,2]
[387824953,1758893443159,-501.40256961,0.00019973,2]
[387824954,1758893443168,-394.34125622,0.00019973,2]
[387824955,1758893443178,-500.0,0.00019973,2]
[387824956,1758893443188,-500.0,0.00019973,2]
[387824957,1758893443197,-500.0,0.00019973,2]
[387824958,1758893443208,-552.96098923,0.00019973,2]
[387824959,1758893443218,-500.0,0.00019973,2]
[387824960,1758893443227,-182.26443632,0.00019973,2]
[387824961,1758893443237,-548.36188869,0.00019973,2]
[387824962,1758893443246,-501.02175602,0.00019973,2]
[387824963,1758893443256,-150.0,0.00019983,2]
[387824964,1758893443265,-155.2242336,0.00019988,2]
[387824965,1758893443275,-150.0,0.00019988,2]
[387824966,1758893443285,-500.0,0.00019988,2]
[387824967,1758893443295,-250.0,0.00019988,2]
[387824968,1758893443304,-1584.0,0.00019988,2]
[387824969,1758893443314,-500.0,0.00019988,2]
[387824970,1758893443324,-150.0,0.00019988,2]
[387824971,1758893443334,-1400.0,0.00019988,2]
[387824972,1758893443343,-150.0,0.00019988,2]
[387824973,1758893443353,-500.0,0.00019988,2]
[387824974,1758893443363,-150.0,0.00019988,2]
[387824975,1758893443372,-150.0,0.00019988,2]
[387824976,1758893443382,-150.0,0.00019988,2]
[387824977,1758893443391,-150.0,0.00019988,2]
[387824978,1758893443401,-150.0,0.00019988,2]
[387824979,1758893443413,-150.0,0.00019988,2]
[387824980,1758893443425,-150.0,0.00019988,2]
[387824981,1758893443435,-150.0,0.00019988,2]
[387824982,1758893443444,-200.0,0.00019988,2]
[387824983,1758893443455,-150.0,0.00019988,2]
[387824984,1758893443465,-150.0,0.00019988,2]
[387824985,1758893443474,-152.19048897,0.00019988,2]
[387824986,1758893443485,-236.17091096,0.00019988,2]
[387824987,1758893443495,-500.0,0.00019988,2]
[387824988,1758893443505,-150.0,0.00019988,2]
[387824989,1758893443515,-175.00240487,0.00019988,2]
[387824990,1758893443524,-500.0,0.00019988,2]
[387824991,1758893443535,-150.0,0.00019988,2]
[387824992,1758893443545,-150.0,0.00019988,2]
[387824993,1758893443555,-200.0,0.00019988,2]
[387824994,1758893443565,-779.0,0.00019988,2]
[387824995,1758893443575,-202.20583273,0.00019988,2]
[387824996,1758893443585,-150.0,0.00019988,2]
[387824997,1758893443594,-500.0,0.00019988,2]
[387824998,1758893443604,-17624.70260678,0.0002,2]
[387824999,1758893443614,-518427.0365982,0.0002,2]
[387825000,1758893443624,-439569.26010892,0.0002,2]
[387825001,1758893443633,-881.35759377,0.0002,2]
[387825002,1758893443643,-10444.8379507,0.0002,2]
[387825003,1758893443653,-500.0,0.0002,2]
[387825004,1758893443663,-500.0,0.0002,2]
[387825005,1758893443675,-500.0,0.0002,2]
[387825006,1758893443685,-500.0,0.0002,2]
[387825007,1758893443695,-500.0,0.0002,2]
[387825008,1758893443705,-500.0,0.0002,2]
[387825009,1758893443715,-500.0,0.0002,2]
[387825010,1758893443724,-500.0,0.0002,2]
[387825011,1758893443734,-500.0,0.0002,2]
[387825012,1758893443743,-500.0,0.0002,2]
[387825013,1758893443753,-500.0,0.0002,2]
[387825014,1758893443764,-500.0,0.0002,2]
[387825015,1758893443774,-500.0,0.0002,2]
[387825016,1758893443784,-500.0,0.0002,2]
[387825017,1758893443794,-500.0,0.0002,2]
[387825018,1758893443803,-503.49379958,0.0002,2]
[387825019,1758893443812,-345.16253357,0.0002,2]
[387825020,1758893443821,-200.0,0.0002,2]
[387825021,1758893443830,-1229.0,0.0002,2]
[387825022,1758893443840,-1229.0,0.0002,2]
[387825023,1758893443850,-1229.0,0.0002,2]
[387825024,1758893443860,-151.0,0.0002,2]
[387825025,1758893443869,-151.0,0.0002,2]
[387825026,1758893443880,-151.0,0.0002,2]
[387825027,1758893443890,-1229.0,0.0002,2]